bitfinex-derivatives/quotes_ETHF0:USTF0_20260119
["timestamp","ask_amount","ask_price","bid_price","bid_amount"]
[1768787870562,4.9327736,3209.3,3208.2,2.58395047]
[1768787870767,4.9327736,3209.3,3208.4,0.00467771]
[1768787871156,4.9300009,3209.2,3208.4,0.00467771]
[1768787871361,0.0027727,3209.3,3208.4,0.00467771]
[1768787871560,4.9300009,3208.9,3208.4,0.00467771]
[1768787871961,4.9300009,3208.7,3208.4,0.00467771]
[1768787872163,4.9300009,3208.9,3208.4,0.00467771]
[1768787872476,0.0027727,3209.3,3208.4,0.00467771]
[1768787872666,4.9300009,3209.0,3208.4,0.00467771]
[1768787872870,0.0027727,3209.3,3208.4,0.00467771]
[1768787873066,4.9300009,3208.9,3208.4,0.00467771]
[1768787873568,0.0027727,3209.3,3208.2,0.00301645]
[1768787873773,0.00467771,3209.0,3208.2,0.00301645]
[1768787873976,4.9300009,3208.6,3207.1,1.762]
[1768787874271,8.31837797,3208.9,3207.1,1.762]
[1768787874475,4.9300009,3208.8,3207.2,0.15596]
[1768787874969,3.38837707,3208.9,3207.1,1.762]
[1768787874970,4.9300009,3208.7,3207.3,0.15596]
[1768787875162,0.00467771,3209.0,3207.6,0.15594]
[1768787875364,0.00467771,3209.0,3207.6,2.64312293]
[1768787875759,0.00467771,3209.0,3207.6,0.15594]
[1768787875959,4.9300009,3208.8,3207.6,0.15594]
[1768787876160,4.9300009,3208.7,3207.6,0.15594]
[1768787876672,4.9300009,3208.6,3207.6,0.15594]
[1768787876872,4.9300009,3208.7,3207.6,0.15594]
[1768787877268,4.9300009,3208.6,3207.6,0.15594]
[1768787877475,4.9300009,3208.7,3207.6,0.15594]
[1768787877869,0.00467771,3209.0,3207.6,0.15594]
[1768787878065,4.9300009,3208.6,3207.6,0.15594]
[1768787878266,3.38837707,3208.6,3207.2,0.00331014]
[1768787878465,4.9300009,3208.0,3207.2,0.00331014]
[1768787878673,4.9300009,3207.6,3207.2,0.00331014]
[1768787878875,4.9300009,3207.9,3206.7,0.15599]
[1768787879075,4.9300009,3208.2,3206.7,0.15599]
[1768787879276,3.38837707,3208.6,3206.7,0.15599]
[1768787879477,4.9300009,3208.1,3206.7,0.15599]
[1768787879673,8.31837797,3208.1,3206.7,0.15599]
[1768787879881,4.9300009,3207.7,3206.7,0.15925748]
[1768787880379,4.9300009,3207.4,3206.7,0.00326748]
[1768787880570,3.38837707,3208.1,3206.0,0.15602]
[1768787880571,4.9300009,3207.6,3206.0,0.15602]
[1768787880771,3.38837707,3207.8,3206.0,0.15602]
[1768787880971,3.38837707,3207.8,3205.9,2.48516244]
[1768787881177,0.00467771,3207.1,3205.9,2.48516244]
[1768787881581,0.00467771,3207.1,3205.9,2.48826887]
[1768787881774,3.38837707,3208.3,3206.6,0.15599]
[1768787882082,4.9300009,3208.2,3206.6,0.15599]
[1768787882372,3.38837707,3208.3,3206.6,0.15599]
[1768787882575,4.9300009,3207.7,3206.6,0.15599]
[1768787882883,4.9300009,3207.8,3206.6,0.15599]
[1768787883081,4.9300009,3207.5,3206.6,0.15599]
[1768787883384,4.9300009,3207.3,3206.6,0.15599]
[1768787883581,4.9300009,3207.5,3206.6,0.15599]
[1768787883970,4.9300009,3207.3,3206.6,0.15599]
[1768787884273,3.38837707,3207.9,3206.6,0.15599]
[1768787884274,4.9300009,3207.5,3206.6,0.15599]
[1768787884670,4.9300009,3207.3,3206.6,0.15599]
[1768787884874,4.9300009,3207.5,3206.6,0.15599]
[1768787885171,3.38837707,3207.9,3205.9,2.39121685]
[1768787885371,8.31837797,3207.7,3206.0,0.15602]
[1768787885572,3.38837707,3207.7,3206.0,0.15602]
[1768787885768,4.9300009,3207.5,3206.2,0.15601]
[1768787885975,4.9300009,3207.6,3206.2,0.15601]
[1768787886182,4.9300009,3207.4,3206.5,0.00467771]
[1768787886379,4.9300009,3207.1,3206.5,0.00467771]
[1768787886578,3.54429707,3208.2,3206.5,0.00467771]
[1768787886783,4.9300009,3207.7,3206.5,0.00467771]
[1768787887182,4.9300009,3207.4,3206.5,0.00467771]
[1768787887373,4.9300009,3207.8,3206.6,0.15599]
[1768787887876,4.9300009,3207.5,3206.6,0.15599]
[1768787888081,4.9300009,3207.7,3206.6,0.15599]
[1768787888474,4.9300009,3207.4,3206.6,0.15599]
[1768787888670,3.38837707,3207.8,3206.6,0.15599]
[1768787888870,4.9300009,3207.3,3206.5,0.00467771]
[1768787889071,3.38837707,3207.8,3206.5,0.00467771]
[1768787889072,4.9300009,3207.4,3206.5,0.00467771]
[1768787889474,4.9300009,3207.2,3206.5,0.00467771]
[1768787889670,4.9300009,3207.4,3206.5,0.00467771]
[1768787890087,4.9300009,3207.2,3206.5,0.00467771]
[1768787890278,4.9300009,3207.3,3206.5,0.00467771]
[1768787890490,4.9300009,3207.0,3206.1,0.15601]
[1768787890688,0.00392419,3207.0,3206.1,0.15601]
[1768787890879,4.9300009,3206.8,3206.1,0.15601]
[1768787891482,4.9300009,3206.7,3205.9,0.00310643]
[1768787891688,4.9300009,3206.9,3206.1,0.15601]
[1768787891992,4.9300009,3206.8,3206.1,0.15601]
[1768787892186,4.9300009,3206.7,3206.1,0.15601]
[1768787892391,4.9300009,3206.7,3206.1,0.16068771]
[1768787892586,4.9300009,3206.5,3206.1,0.16068771]
[1768787892782,4.9300009,3206.7,3205.9,0.00310643]
[1768787892987,4.9300009,3206.8,3205.9,0.00310643]
[1768787893187,4.9300009,3206.7,3205.9,0.00310643]
[1768787893581,4.9300009,3206.5,3205.9,0.00310643]
[1768787893784,4.9300009,3206.7,3205.6,3.118]
[1768787893978,4.9300009,3206.7,3205.7,0.15604]
[1768787894185,4.9300009,3206.4,3205.7,0.15604]
[1768787894389,0.00392419,3207.0,3205.0,2.54870351]
[1768787894390,4.9300009,3206.5,3205.2,1.762]
[1768787894589,3.38837707,3206.6,3205.2,1.762]
[1768787894796,4.9300009,3206.3,3205.2,1.76576369]
[1768787895086,4.9300009,3206.0,3205.2,0.00376369]
[1768787895488,4.9300009,3205.7,3204.8,3.119]
[1768787895790,3.38837707,3206.0,3204.0,2.56382164]
[1768787896180,0.00467771,3205.6,3204.0,2.56382164]
[1768787896381,3.38837707,3206.5,3204.6,0.15609]
[1768787896578,4.9300009,3206.0,3204.6,0.15609]
[1768787896878,4.9300009,3205.9,3204.6,0.15609]
[1768787897080,3.38837707,3206.3,3204.6,0.15609]
[1768787897391,4.9300009,3205.7,3204.6,0.15609]
[1768787897779,4.9300009,3205.4,3204.6,0.15609]
[1768787897984,4.93467861,3205.5,3204.6,0.15609]
[1768787898184,4.9300009,3205.2,3204.6,0.15609]
[1768787898593,4.9300009,3205.0,3204.6,0.15609]
[1768787898794,0.00467771,3205.5,3204.6,0.15609]
[1768787899195,0.00467771,3205.5,3204.0,0.00338881]
[1768787900181,3.39305478,3205.5,3204.0,0.00338881]
[1768787912300,0.00467771,3205.5,3204.4,0.16077771]
[1768787912508,3.58084295,3205.9,3204.4,0.16077771]
[1768787912700,3.58084295,3205.9,3204.5,0.1561]
[1768787915302,3.58084295,3205.9,3204.7,0.15608]
[1768787915700,3.58084295,3206.9,3205.1,2.57663323]
[1768787915906,3.58084295,3206.9,3204.9,0.15608]
[1768787919621,3.58084295,3206.9,3204.6,2.57663323]
[1768787920324,0.00392419,3207.0,3205.4,0.15605]
[1768787920732,0.00392419,3207.0,3205.5,2.51006727]
[1768787921033,0.00392419,3207.0,3205.8,1.86804142]
[1768787921525,0.00392419,3207.0,3205.8,4.37810869]
[1768787921725,3.28536028,3207.9,3206.1,0.00467771]
[1768787922426,3.28536028,3207.7,3206.1,0.00467771]
[1768787922825,3.28536028,3207.5,3206.1,0.00467771]
[1768787929120,0.00467771,3207.1,3206.1,0.00467771]
[1768787932628,3.28536028,3207.5,3206.1,1.87271913]
[1768787933239,3.28536028,3207.5,3206.1,0.00467771]
[1768787938337,3.28536028,3207.5,3206.1,0.16069771]
[1768787938536,3.28536028,3207.5,3206.3,0.15601]
[1768787938839,0.00381337,3207.7,3206.3,0.15973666]
[1768787943241,3.2811503,3207.7,3206.3,0.15973666]
[1768787946039,3.2811503,3207.7,3206.4,0.156]
[1768787946434,0.00381337,3207.7,3206.4,0.156]
[1768787948344,0.00381337,3207.7,3206.5,0.156]
[1768787950337,0.00381337,3207.7,3206.3,0.00372666]
[1768787950540,0.00381337,3207.7,3206.7,0.15599]
[1768787957040,0.00467771,3207.5,3206.3,0.00372666]
[1768787958843,0.00467771,3207.5,3206.6,0.15599]
[1768787961341,0.00381337,3207.7,3206.6,0.15599]
[1768787961342,0.83255191,3208.5,3206.9,0.15598]
[1768787961542,1.66139094,3208.5,3206.9,0.15598]
[1768787961745,0.82883903,3208.4,3206.9,0.15598]
[1768787962048,0.82883903,3208.3,3206.9,0.15598]
[1768787962245,4.10988884,3208.5,3206.9,0.15598]
[1768787962448,0.00255413,3208.3,3206.9,0.15598]
[1768787962841,0.00255413,3208.3,3207.3,1.29661361]
[1768787966556,3.48856997,3208.1,3206.4,2.79415819]
[1768787966851,4.78518358,3207.8,3206.4,1.29661361]
[1768787967053,3.48856997,3207.8,3206.4,1.29661361]
[1768787968669,3.48856997,3207.8,3206.6,1.29661361]
[1768787970856,3.48856997,3207.8,3206.3,0.15973666]
[1768787975150,3.48856997,3207.8,3206.3,1.92273666]
[1768787976561,0.83255191,3208.1,3206.5,2.71308481]
[1768787976761,0.82919666,3208.0,3206.5,2.71308481]
[1768787976953,0.82919666,3207.9,3206.5,2.71308481]
[1768787977157,4.32112188,3208.2,3206.5,2.71308481]
[1768787977353,0.82922035,3208.1,3206.5,2.71308481]
[1768787977660,0.82922035,3208.0,3206.5,2.71308481]
[1768787977959,4.31779032,3207.9,3206.5,1.919]
[1768787978157,3.48856997,3207.9,3206.5,1.919]
[1768787978363,0.82923541,3207.8,3206.5,1.919]
[1768787978564,3.48856997,3207.9,3206.5,1.919]
[1768787978766,0.82923773,3207.8,3206.5,1.919]
[1768787978962,3.48856997,3207.9,3206.5,1.919]
[1768787979153,0.82923756,3207.8,3206.5,1.919]
[1768787979464,3.48856997,3207.9,3206.5,1.919]
[1768787979666,0.82924113,3207.8,3206.5,1.919]
[1768787979864,3.48856997,3207.9,3206.5,1.919]
[1768787980164,0.82929566,3207.8,3206.5,1.919]
[1768787980365,3.48856997,3207.9,3206.5,1.919]
[1768787981865,0.82717316,3207.8,3206.5,1.919]
[1768787982167,3.48856997,3207.9,3206.5,1.919]
[1768787982363,0.82733162,3207.8,3206.5,1.919]
[1768787982567,3.48856997,3207.9,3206.5,1.919]
[1768787982862,0.82737442,3207.8,3206.5,1.919]
[1768787983054,3.48856997,3207.9,3206.5,1.919]
[1768787985464,3.48856997,3207.9,3206.5,4.49904401]
[1768787988571,0.83255191,3208.2,3206.6,0.15599]
[1768787988758,4.15819859,3208.2,3206.6,0.15599]
[1768787989063,0.82697281,3208.1,3206.6,0.15599]
[1768787989272,0.82697281,3208.0,3206.6,0.15599]
[1768787989463,0.82697281,3208.0,3206.3,0.00372666]
[1768787989464,4.15261949,3207.9,3206.3,4.34633716]
[1768787989663,3.32564668,3207.9,3206.3,4.34633716]
[1768787989966,0.98847191,3208.2,3206.4,2.7356105]
[1768787990157,0.82699516,3208.1,3206.4,2.7356105]
[1768787990357,0.82699516,3208.0,3206.4,2.7356105]
[1768787990570,0.82699516,3207.9,3206.4,2.7356105]
[1768787990769,3.32564668,3208.1,3206.4,2.7356105]
[1768787990969,0.8270423,3208.0,3206.4,2.7356105]
[1768787991167,0.8270423,3207.9,3206.4,2.7356105]
[1768787991471,3.32564668,3208.1,3206.4,2.7356105]
[1768787991673,0.82708953,3208.0,3206.4,2.7356105]
[1768787991862,0.82708953,3207.9,3206.4,2.7356105]
[1768787992063,3.32564668,3208.1,3206.4,2.7356105]
[1768787992266,0.82707414,3208.0,3206.4,2.7356105]
[1768787992463,0.82707414,3207.9,3206.4,2.7356105]
[1768787993172,3.32564668,3208.0,3206.4,2.7356105]
[1768787994269,0.15592,3208.2,3206.4,2.7356105]
[1768787994476,0.82742313,3208.1,3206.4,2.7356105]
[1768787994771,0.00255413,3208.3,3206.7,3.97598816]
[1768787994979,0.82745343,3208.2,3206.7,3.97598816]
[1768787995177,0.00255413,3208.3,3207.1,1.29706757]
[1768787995377,0.82748308,3208.2,3207.1,1.29706757]
[1768787995574,0.00255413,3208.3,3207.1,1.29706757]
[1768787997074,0.00255413,3208.3,3206.9,3.97597816]
[1768788000279,0.00255413,3208.3,3207.0,2.55832309]
[1768788000477,0.00255413,3208.3,3206.9,1.45304757]
[1768788000776,3.40878676,3208.3,3206.9,1.45304757]
[1768788000983,4.23327102,3208.2,3206.9,1.763]
[1768788001176,3.40623263,3208.2,3206.9,1.763]
[1768788001378,3.40623263,3207.9,3206.3,0.15973666]
[1768788001585,4.23361532,3207.8,3206.3,0.15973666]
[1768788001782,3.40623263,3207.8,3206.3,0.15973666]
[1768788002078,2.12961948,3208.0,3206.3,1.30079423]
[1768788002079,5.0662827,3207.7,3206.3,1.30079423]
[1768788002267,4.23373079,3207.6,3206.3,0.00372666]
[1768788002472,3.40623263,3207.3,3206.3,0.00372666]
[1768788002687,4.23373079,3207.2,3206.3,0.00372666]
[1768788002875,3.40623263,3207.2,3206.3,0.00372666]
[1768788003480,1.10309692,3207.6,3206.3,0.00372666]
[1768788003481,4.23878454,3207.6,3206.3,0.00372666]
[1768788003681,0.82690003,3207.5,3206.3,0.00372666]
[1768788003896,0.82690003,3207.4,3206.3,0.00372666]
[1768788004102,4.23878454,3207.6,3206.3,0.00372666]
[1768788004291,0.82689957,3207.5,3206.3,0.00372666]
[1768788004494,4.2331322,3207.4,3206.3,0.00372666]
[1768788004804,3.40623263,3207.4,3206.3,0.00372666]
[1768788005598,4.23262732,3207.3,3206.3,0.00372666]
[1768788005800,3.40623263,3207.3,3206.3,0.00372666]
[1768788006093,3.40623263,3207.3,3206.1,0.00467771]
[1768788006094,3.40623263,3207.1,3206.1,0.00467771]
[1768788006497,4.23878454,3207.5,3206.1,0.00467771]
[1768788006690,0.8260967,3207.4,3206.1,0.00467771]
[1768788006885,0.8260967,3207.3,3206.1,0.00467771]
[1768788007085,4.23878454,3207.5,3206.1,0.00467771]
[1768788007086,3.40623263,3207.1,3206.1,0.00701445]
[1768788007291,3.40623263,3207.1,3205.3,0.15606]
[1768788007488,3.40623263,3206.9,3205.1,3.95719063]
[1768788007705,3.40623263,3206.7,3205.1,3.95719063]
[1768788008003,3.40623263,3206.7,3205.1,2.66012306]
[1768788008302,3.40623263,3206.7,3205.1,0.00238285]
[1768788008908,3.40623263,3206.5,3204.3,4.09122576]
[1768788009199,3.40623263,3206.5,3205.1,1.29706757]
[1768788009900,3.40623263,3206.5,3205.1,0.00247826]
[1768788010100,3.40623263,3206.5,3205.5,0.00467771]
[1768788010291,3.40623263,3206.9,3205.5,0.00467771]
[1768788012700,3.40623263,3207.3,3205.5,3.94817159]
[1768788013004,3.40623263,3207.3,3205.6,2.64642631]
[1768788013702,4.23478071,3207.2,3205.6,2.64642631]
[1768788013901,3.40623263,3207.2,3205.6,2.64642631]
[1768788014202,3.40623263,3207.0,3205.5,0.00467771]
[1768788015607,3.40623263,3206.7,3205.5,0.00467771]
[1768788017808,3.56222263,3206.7,3205.1,0.00247826]
[1768788018017,3.40623263,3206.3,3205.1,0.00247826]
[1768788020208,3.40623263,3206.3,3204.7,1.43483175]
[1768788021126,3.40623263,3206.3,3204.7,0.1415171]
[1768788021817,3.40623263,3206.3,3204.7,0.00375292]
[1768788023016,3.3332129,3206.1,3204.7,0.00375292]
[1768788025616,0.00467771,3206.4,3205.6,1.29706757]
[1768788025922,3.3332129,3207.1,3205.4,1.29706757]
[1768788026415,3.3332129,3207.1,3205.1,1.45312757]
[1768788027018,3.3332129,3207.1,3205.8,0.00467771]
[1768788027518,3.3332129,3206.9,3205.8,0.00467771]
[1768788027912,4.16576481,3207.4,3205.8,0.00467771]
[1768788028111,0.82810231,3207.3,3205.8,0.00467771]
[1768788028313,0.82873877,3207.2,3205.8,0.00467771]
[1768788028510,3.3332129,3207.4,3205.8,0.00467771]
[1768788029518,3.3332129,3207.4,3205.8,2.85792875]
[1768788032223,3.3332129,3207.4,3205.8,3.01395875]
[1768788032523,3.3332129,3207.8,3206.0,3.04292279]
[1768788032721,0.83030831,3207.7,3206.0,3.04292279]
[1768788032928,3.3332129,3208.2,3206.5,2.88690279]
[1768788033223,3.3332129,3208.2,3206.0,4.884]
[1768788033224,3.3332129,3208.2,3206.6,3.04289279]
[1768788033423,3.3332129,3208.2,3206.7,0.15599]
[1768788035026,0.00255413,3208.3,3206.8,3.05724668]
[1768788035324,3.33576703,3208.3,3206.8,0.15598]
[1768788035621,3.3332129,3208.1,3206.4,2.90126668]
[1768788035925,3.3332129,3208.1,3206.1,0.15602]
[1768788036122,3.3332129,3207.9,3206.1,0.15602]
[1768788036726,3.3332129,3207.7,3206.1,0.15602]
[1768788036920,3.3332129,3207.7,3205.8,0.00467771]
[1768788037429,0.00467771,3207.1,3205.8,0.00467771]
[1768788039915,3.44715165,3207.1,3205.8,0.00467771]
[1768788041430,0.00467771,3207.1,3205.8,0.00467771]
[1768788042832,3.44715165,3207.1,3205.8,0.00467771]
[1768788048038,0.82907071,3207.0,3205.8,0.00467771]
[1768788048238,3.44715165,3207.1,3205.8,0.00467771]
[1768788048436,0.82917327,3207.0,3205.8,0.00467771]
[1768788048739,3.44715165,3207.1,3205.8,0.00467771]
[1768788049138,0.82920054,3207.0,3205.8,0.00467771]
[1768788049341,3.44715165,3207.1,3205.8,0.00467771]
[1768788049539,0.82929357,3207.0,3205.8,0.00467771]
[1768788049738,3.44715165,3207.1,3205.8,0.00467771]
[1768788049939,3.44247394,3206.9,3205.8,0.00467771]
[1768788050729,3.44247394,3206.9,3204.7,2.97588289]
[1768788050730,3.44247394,3206.5,3204.7,2.97588289]
[1768788050927,1.29862677,3206.3,3204.8,1.29862677]
[1768788051336,1.29862677,3206.3,3205.1,1.29862677]
[1768788051731,3.44247394,3206.2,3205.1,1.29862677]
[1768788051935,3.44247394,3206.2,3205.4,0.00467771]
[1768788054061,4.87348454,3206.6,3205.4,0.00467771]
[1768788054263,0.82972351,3206.5,3205.4,0.00467771]
[1768788054449,1.29862677,3205.9,3204.7,0.00375292]
[1768788054656,1.30086325,3205.9,3204.7,0.00375292]
[1768788054857,0.00223648,3205.9,3204.7,0.00375292]
[1768788055751,3.42110425,3205.9,3204.7,0.00375292]
[1768788055952,3.42110425,3205.9,3204.8,1.29862677]
[1768788056162,4.71749454,3205.7,3204.7,0.00375292]
[1768788056455,4.71749454,3205.7,3204.2,0.15611]
[1768788056456,1.29862677,3205.3,3204.0,1.29862677]
[1768788056661,4.71749454,3205.5,3204.2,1.29862677]
[1768788056962,3.41886777,3205.5,3203.8,2.97539806]
[1768788057157,0.00467771,3205.2,3203.8,2.97539806]
[1768788057655,0.00467771,3205.2,3203.8,2.97877864]
[1768788058653,0.00223648,3205.9,3205.0,1.8707773]
[1768788058853,3.57483777,3207.1,3205.5,1.8707773]
[1768788059054,3.41886777,3207.1,3205.5,4.78838466]
[1768788059959,3.42232222,3207.1,3205.5,4.78838466]
[1768788060357,3.42232222,3207.1,3205.5,1.8707773]
[1768788060659,0.82956195,3207.0,3205.0,2.85934199]
[1768788060864,4.24842972,3206.9,3205.0,2.85934199]
[1768788061062,3.41886777,3206.7,3205.0,2.85934199]
[1768788062366,3.41886777,3206.7,3204.8,1.92008]
[1768788062751,3.41886777,3206.2,3204.0,0.15612]
[1768788062960,3.41886777,3206.0,3203.8,3.0095639]
[1768788063456,3.41886777,3205.8,3203.8,3.0095639]
[1768788063953,3.41886777,3205.8,3203.8,0.00338058]
[1768788064968,3.41886777,3205.6,3203.8,0.00338058]
[1768788065863,3.41886777,3206.1,3204.1,2.9279917]
[1768788066362,3.41886777,3206.6,3204.6,2.9279917]
[1768788066564,0.00345445,3207.1,3205.1,2.9279917]
[1768788066766,3.42232222,3207.1,3205.1,2.9279917]
[1768788067059,3.42232222,3207.1,3205.3,0.00467771]
[1768788067959,3.41886777,3206.6,3205.3,0.00467771]
[1768788068650,0.82932522,3206.5,3205.3,0.00467771]
[1768788068856,4.24820197,3206.4,3205.3,0.00467771]
[1768788069157,3.41886777,3206.2,3204.3,3.11505457]
[1768788069961,3.41886777,3206.0,3204.0,3.121]
[1768788070467,3.41886777,3206.0,3203.9,1.764]
[1768788070468,3.41886777,3206.0,3203.8,4.71482752]
[1768788070964,3.41886777,3206.0,3203.8,2.95182752]
[1768788071465,3.41886777,3205.8,3203.8,2.95182752]
[1768788074560,3.41886777,3205.8,3204.5,0.00467771]
[1768788076366,3.57489777,3205.8,3204.5,0.00467771]
[1768788077770,0.83062423,3205.7,3204.5,0.00467771]
[1768788077975,4.249492,3205.6,3204.5,0.00467771]
[1768788078173,3.41886777,3205.6,3204.5,0.00467771]
[1768788081260,3.41886777,3205.6,3203.8,0.00338058]
[1768788082275,3.41886777,3205.6,3203.8,2.9816114]
[1768788082572,4.34465854,3206.1,3204.2,2.97489241]
[1768788082773,3.51334987,3205.9,3204.2,2.97489241]
[1768788083074,0.83011279,3205.8,3204.2,2.97489241]
[1768788083275,3.51334987,3205.9,3204.2,2.97489241]
[1768788083469,0.83013461,3205.8,3204.2,2.97489241]
[1768788083667,3.51334987,3205.9,3204.2,2.97489241]
[1768788083869,0.83040456,3205.8,3204.2,2.97489241]
[1768788084066,3.51334987,3205.5,3203.8,0.00338058]
[1768788084263,3.51334987,3205.0,3203.8,0.00338058]
[1768788084462,3.66941987,3205.0,3202.7,2.0269573]
[1768788085072,0.00467771,3204.2,3202.7,2.0269573]
[1768788085272,0.00467771,3204.2,3202.8,0.15618]
[1768788085472,0.00467771,3204.2,3202.8,3.10191789]
[1768788085473,0.00830802,3204.2,3202.8,3.10191789]
[1768788085666,0.00830802,3204.2,3202.8,2.94573789]
[1768788085873,3.52165789,3204.2,3202.8,0.00279431]
[1768788087978,3.52165789,3204.2,3201.2,0.15625]
[1768788087979,3.51334987,3203.7,3201.2,0.15625]
[1768788088180,3.51334987,3203.1,3201.1,2.90503954]
[1768788088980,0.00467771,3202.6,3201.4,0.00862459]
[1768788090476,3.51802758,3202.6,3201.4,0.00862459]
[1768788090783,3.51802758,3202.6,3200.6,4.45603954]
[1768788090980,3.51802758,3202.6,3200.6,2.90503954]
[1768788091785,3.51802758,3202.6,3200.6,0.00271888]
[1768788092573,3.67421758,3202.6,3200.6,0.00271888]
[1768788093983,0.00467771,3202.6,3201.1,2.7583771]
[1768788095281,0.00467771,3202.6,3201.5,1.8707773]
[1768788095591,3.51334987,3203.6,3201.5,4.66522072]
[1768788096885,0.00468516,3202.9,3201.5,4.66522072]
[1768788097182,0.00468516,3202.9,3201.4,0.15624]
[1768788097783,3.51803503,3202.9,3201.1,5.85583159]
[1768788098687,3.51803503,3202.9,3200.8,0.15628]
[1768788099592,3.51803503,3202.9,3200.8,2.87096653]
[1768788102695,3.51803503,3202.9,3200.9,0.15627]
[1768788102893,3.51803503,3202.9,3201.0,2.86373494]
[1768788103194,3.51803503,3202.9,3201.0,2.70746494]
[1768788103397,0.00468516,3202.9,3201.5,0.15624]
[1768788103592,0.00468516,3202.9,3201.6,0.15624]
[1768788105704,0.00468516,3202.9,3201.7,2.7762945]
[1768788106005,0.00468516,3202.9,3201.7,0.15623]
[1768788109416,0.00468516,3202.9,3201.7,2.79136547]
[1768788109622,3.49761995,3203.9,3202.1,2.63513547]
[1768788111115,3.49761995,3203.9,3202.7,0.00468516]
[1768788115213,3.49761995,3203.9,3201.6,2.75547163]
[1768788115410,3.46983192,3203.5,3201.6,2.75547163]
[1768788115816,3.46983192,3203.5,3201.7,0.15623]
[1768788116427,3.46983192,3203.5,3201.6,2.59923163]
[1768788116624,3.46983192,3203.5,3202.0,0.15622]
[1768788116923,0.00468516,3203.6,3202.1,0.15621]
[1768788117220,0.00468516,3203.6,3202.1,2.76158566]
[1768788122127,0.00468516,3203.6,3202.1,2.60537566]
[1768788122313,0.00363031,3204.2,3202.8,2.54914618]
[1768788122515,0.00363031,3204.2,3203.0,2.70531618]
[1768788122816,0.00363031,3204.2,3203.0,1.9231637]
[1768788123120,0.00363031,3204.2,3203.0,4.47230988]
[1768788123518,0.00363031,3204.2,3203.0,0.0029937]
[1768788126928,0.00363031,3204.2,3203.0,2.54677151]
[1768788127123,0.00363031,3204.2,3203.0,0.0029937]
[1768788127524,0.00363031,3204.2,3203.0,2.55241999]
[1768788127826,0.00363031,3204.2,3203.2,2.54942629]
[1768788128022,0.00363031,3204.2,3203.0,0.0029937]
[1768788129640,0.00363031,3204.2,3203.0,2.50895891]
[1768788132229,0.00363031,3204.2,3203.0,2.66512891]
[1768788132925,0.00363031,3204.2,3203.1,2.65552036]
[1768788133330,4.30114059,3205.2,3203.1,2.65552036]
[1768788133525,3.46983192,3205.0,3203.1,2.65552036]
[1768788133922,3.46983192,3204.8,3203.0,0.0029937]
[1768788134122,3.46983192,3204.8,3203.0,1.7669937]
[1768788134428,3.47381343,3204.8,3203.0,0.0029937]
[1768788136026,0.834099,3204.7,3203.0,0.0029937]
[1768788136231,3.46983192,3204.6,3203.0,0.0029937]
[1768788138136,0.00398151,3204.8,3203.0,0.0029937]
[1768788138137,3.46983192,3204.4,3203.0,0.0029937]
[1768788142829,3.44434973,3204.2,3203.0,0.0029937]
[1768788143037,3.28823973,3204.0,3202.5,0.00468516]
[1768788143839,3.28823973,3203.8,3202.5,0.00468516]
[1768788144141,3.28823973,3203.8,3202.5,0.00799478]
[1768788144737,3.28823973,3203.6,3202.5,0.00799478]
[1768788147237,3.28823973,3203.6,3201.7,0.15623]
[1768788147438,0.83130867,3203.9,3201.7,0.15623]
[1768788147439,3.28823973,3203.3,3201.7,0.15623]
[1768788148031,3.28823973,3203.3,3201.7,0.15979505]
[1768788149243,3.28823973,3203.3,3201.7,0.00356505]
[1768788150941,3.44332609,3202.9,3201.7,0.00356505]
[1768788151443,3.44332609,3202.7,3200.3,2.54655977]
[1768788151632,3.44332609,3202.7,3200.4,4.887]
[1768788152437,3.44332609,3202.7,3200.5,2.54654977]
[1768788152640,3.44332609,3203.3,3201.0,0.15627]
[1768788152944,3.44332609,3203.3,3201.1,2.39025977]
[1768788153239,3.44332609,3203.2,3201.1,2.39025977]
[1768788154634,3.44332609,3203.2,3201.0,0.15627]
[1768788154836,3.59948609,3203.2,3201.0,0.15627]
[1768788156035,3.44332609,3203.0,3200.7,2.38726295]
[1768788156343,0.00468516,3203.4,3200.4,0.00333831]
[1768788156344,3.44332609,3202.5,3200.4,0.00333831]
[1768788156646,3.44629136,3202.5,3200.4,0.00333831]
[1768788157028,0.00468516,3201.8,3200.4,0.00333831]
[1768788158442,0.00468516,3201.8,3200.4,0.15963831]
[1768788159545,0.00468516,3201.8,3200.4,2.53698709]
[1768788159741,0.00296527,3202.5,3200.7,2.37266362]
[1768788159948,0.00296527,3202.5,3200.9,2.37266362]
[1768788160343,0.00296527,3202.5,3201.1,0.15626]
[1768788160551,0.00296527,3202.5,3201.0,2.37266362]
[1768788160552,0.00296527,3202.5,3201.2,2.52892362]
[1768788161142,0.00468516,3202.2,3201.2,2.52892362]
[1768788162748,0.00296527,3202.5,3201.3,2.50953113]
[1768788162949,0.00296527,3202.5,3201.4,0.00468516]
[1768788163145,0.00296527,3202.5,3201.4,0.16093516]
[1768788163345,0.00296527,3202.5,3201.5,0.15624]
[1768788163539,0.00296527,3202.5,3201.5,2.47987801]
[1768788163739,3.59965716,3203.2,3201.5,2.47987801]
[1768788164044,3.59965716,3203.6,3201.5,2.47987801]
[1768788164456,3.59965716,3203.6,3201.7,2.32363801]
[1768788164655,3.60337685,3203.6,3201.7,2.47986801]
[1768788164951,3.60337685,3203.6,3201.8,2.47986801]
[1768788166757,3.60337685,3203.6,3201.9,2.47046476]
[1768788168053,0.00371969,3203.6,3202.1,0.15621]
[1768788168255,0.00371969,3203.6,3202.2,0.15621]
[1768788168852,0.00371969,3203.6,3202.3,0.1562]
[1768788169051,0.00371969,3203.6,3202.3,2.02869739]
[1768788169849,0.00371969,3203.6,3202.3,4.31156718]
[1768788170560,0.00371969,3203.6,3202.3,6.07556718]
[1768788171161,0.00468516,3203.3,3202.3,6.07556718]
[1768788171351,0.00468516,3203.3,3202.4,0.1562]
[1768788171663,0.00468516,3203.3,3202.5,0.15619]
[1768788172154,3.59965716,3204.6,3202.7,2.4438104]
[1768788172564,3.59965716,3204.6,3202.8,0.15618]
[1768788173147,3.60263008,3204.6,3203.4,0.00468516]
[1768788173353,0.00297292,3204.6,3203.4,0.00468516]
[1768788174163,0.00297292,3204.6,3203.5,0.15614]
[1768788177353,0.00624,3205.4,3203.8,1.87249739]
[1768788178455,0.00883283,3205.4,3203.8,1.87249739]
[1768788178663,0.00883283,3205.4,3203.8,4.07940974]
[1768788180072,0.00883283,3205.4,3203.8,4.23553974]
[1768788180261,0.00883283,3205.4,3203.8,4.07940974]
[1768788180468,3.47155696,3206.5,3204.4,2.02859739]
[1768788180676,3.47155696,3206.5,3204.5,1.763]
[1768788180867,3.47155696,3206.5,3204.7,0.15609]
[1768788181064,3.47155696,3206.5,3204.8,0.15608]
[1768788181368,3.62755696,3206.5,3205.2,0.00468516]
[1768788181560,3.63073619,3206.5,3205.2,0.00738803]
[1768788182167,3.47155696,3206.3,3205.2,0.00738803]
[1768788182465,3.47155696,3206.3,3204.4,1.763]